bitfinex/quotes_ETHUSD_20260129
["timestamp","ask_amount","ask_price","bid_price","bid_amount"]
[1769706142468,0.0983595,2846.2,2845.8,0.0983595]
[1769706142664,0.0983595,2846.2,2846.0,0.0073097]
[1769706142873,0.0983595,2846.2,2845.5,0.0983595]
[1769706143039,10.25619437,2846.1,2845.1,0.0983595]
[1769706143239,10.25619437,2846.1,2845.3,0.10541666]
[1769706143240,0.87842586,2846.0,2845.3,0.10541666]
[1769706143467,0.87842586,2846.0,2843.8,0.0983595]
[1769706143468,1.0,2845.9,2845.0,0.10541666]
[1769706143774,1.0,2845.6,2844.8,0.10541666]
[1769706143959,1.0,2845.6,2845.0,0.10541666]
[1769706144156,1.0,2845.6,2844.7,0.10541666]
[1769706144355,1.0,2845.6,2844.9,0.10541666]
[1769706144665,1.0,2845.6,2844.7,0.10541666]
[1769706145168,1.0,2845.6,2844.8,0.10541666]
[1769706145552,1.0,2845.6,2845.0,0.10541666]
[1769706145553,0.87858021,2845.5,2845.0,0.10541666]
[1769706145759,0.736,2845.4,2845.0,0.10541666]
[1769706145963,0.87858021,2845.5,2845.0,0.10541666]
[1769706146152,0.87858021,2845.5,2845.1,0.10541666]
[1769706146348,0.87858021,2845.5,2844.9,0.10541666]
[1769706147039,0.87858021,2845.5,2844.8,0.10541666]
[1769706147742,0.87858021,2845.5,2845.2,0.002]
[1769706147967,0.87858021,2845.5,2844.8,0.10541666]
[1769706148171,0.87858021,2845.5,2845.0,0.10741666]
[1769706148694,0.87858021,2845.5,2845.0,0.002]
[1769706148845,0.87858021,2845.5,2844.8,0.09841309]
[1769706149041,0.87858021,2845.5,2844.7,0.09841309]
[1769706149244,0.87858021,2845.5,2844.5,0.09841309]
[1769706149245,0.87858021,2845.5,2844.8,0.09841309]
[1769706149712,0.87858021,2845.5,2844.9,0.09841309]
[1769706150001,1.0,2845.4,2844.2,0.09841309]
[1769706150208,1.0,2845.4,2844.5,0.09841309]
[1769706150512,1.0,2845.0,2843.9,0.09841309]
[1769706150667,9.25619437,2844.5,2844.1,0.09841309]
[1769706150863,9.25619437,2844.5,2843.9,0.09841309]
[1769706150864,0.736,2844.4,2843.9,0.09841309]
[1769706151167,1.7346149,2844.4,2844.0,0.10547967]
[1769706151494,0.9986149,2844.1,2843.4,0.10547967]
[1769706151991,0.9986149,2844.1,2843.5,0.10547967]
[1769706152493,0.9986149,2844.1,2843.3,0.10547967]
[1769706152879,0.9986149,2844.1,2843.0,0.10547967]
[1769706153080,9.25619437,2843.6,2843.2,0.09845981]
[1769706153280,9.25619437,2843.6,2843.0,0.10547967]
[1769706153595,1.61522116,2843.5,2842.6,0.09845981]
[1769706153771,2.57988927,2843.5,2842.8,0.09845981]
[1769706153971,0.96466811,2843.4,2842.6,0.09845981]
[1769706154168,0.96466811,2843.3,2842.4,0.09845981]
[1769706154389,0.87905546,2844.0,2843.3,0.09845981]
[1769706154587,0.87902535,2844.1,2843.5,0.09845981]
[1769706154787,10.22086248,2844.2,2843.7,0.09845981]
[1769706155129,9.25619437,2844.9,2844.3,0.07735584]
[1769706155423,9.25619437,2844.9,2843.9,0.09845981]
[1769706155998,9.25619437,2844.9,2843.7,0.09845981]
[1769706155999,9.25619437,2844.9,2844.0,0.07735584]
[1769706157087,9.25619437,2844.9,2843.7,0.09845981]
[1769706157088,0.87863787,2845.4,2844.1,0.07735584]
[1769706157289,9.25619437,2845.5,2844.3,0.07735584]
[1769706157489,0.736,2845.4,2844.8,0.07735584]
[1769706157881,0.736,2845.4,2844.6,0.07735584]
[1769706158076,10.87079057,2845.5,2844.5,0.07735584]
[1769706158279,10.13478102,2845.5,2844.5,0.07735584]
[1769706158478,10.87078102,2845.5,2844.5,0.07735584]
[1769706158812,10.87078102,2845.5,2844.4,0.07735584]
[1769706159017,11.83544913,2845.5,2844.2,0.07735584]
[1769706159224,9.25619437,2844.9,2843.5,0.09845981]
[1769706159370,0.96466811,2845.4,2843.9,0.07735584]
[1769706159575,10.13500966,2844.8,2843.5,0.09845981]
[1769706159802,0.736,2844.7,2843.0,0.09841309]
[1769706160114,0.736,2844.7,2843.9,0.07735584]
[1769706160398,9.25619437,2844.3,2843.1,0.07735584]
[1769706160775,0.96466811,2844.2,2842.8,0.07735584]
[1769706161388,0.96466811,2844.2,2842.5,0.09845981]
[1769706161389,0.96466811,2844.2,2844.0,0.002]
[1769706161592,0.96466811,2844.0,2842.3,0.48323976]
[1769706161799,0.87901269,2844.1,2842.9,0.002]
[1769706162004,0.736,2843.9,2842.9,0.002]
[1769706162700,0.96466811,2843.8,2842.9,0.002]
[1769706163001,1.70066811,2843.8,2843.0,0.07735584]
[1769706163702,0.96466811,2843.8,2843.0,0.07735584]
[1769706164096,1.84377761,2843.8,2843.0,0.07735584]
[1769706164279,1.84377761,2843.8,2842.9,0.002]
[1769706164697,0.736,2843.7,2842.9,0.002]
[1769706164899,9.29779879,2843.7,2842.9,0.002]
[1769706165105,10.2624669,2843.7,2842.9,0.002]
[1769706165307,0.96466811,2843.6,2842.9,0.002]
[1769706165614,0.96466811,2843.6,2842.9,0.00053369]
[1769706165826,0.736,2843.5,2842.9,0.00053369]
[1769706166002,1.84385563,2843.6,2842.9,0.00053369]
[1769706166186,0.736,2843.5,2842.9,0.00053369]
[1769706166689,1.84385563,2843.6,2842.9,0.00053369]
[1769706166883,8.56179879,2843.2,2842.3,0.48323976]
[1769706167306,0.96466811,2843.1,2842.3,0.48323976]
[1769706167707,1.8440209,2843.0,2842.3,0.48323976]
[1769706168014,0.96466811,2842.9,2842.3,0.48323976]
[1769706168198,0.87927873,2843.3,2842.3,0.48323976]
[1769706168393,1.61527873,2843.3,2842.3,0.48323976]
[1769706168598,0.87927873,2843.3,2842.3,0.48323976]
[1769706168794,2.57991886,2843.4,2842.3,0.48323976]
[1769706169422,0.736,2843.3,2842.3,0.48323976]
[1769706169713,0.87932186,2843.1,2842.3,0.48323976]
[1769706169906,1.84398997,2843.1,2842.3,0.48323976]
[1769706170225,0.736,2843.0,2842.3,0.48323976]
[1769706170437,1.84398997,2843.1,2842.3,0.48323976]
[1769706170599,0.736,2842.9,2842.3,0.48323976]
[1769706171451,1.70066811,2842.9,2842.3,0.48323976]
[1769706172100,0.87941466,2842.8,2842.3,0.48323976]
[1769706173323,0.96466811,2842.7,2842.3,0.002]
[1769706173508,1.70066811,2842.7,2842.3,0.002]
[1769706173708,0.96466811,2842.6,2842.3,0.002]
[1769706174295,1.84414626,2842.6,2842.3,0.002]
[1769706174807,2.58014626,2842.6,2841.1,0.002]
[1769706175523,0.96686184,2842.5,2841.1,0.002]
[1769706176019,1.70386184,2842.5,2841.1,0.002]
[1769706176413,0.96686184,2842.5,2841.1,0.002]
[1769706176722,0.87949925,2842.6,2841.1,0.002]
[1769706176924,0.737,2842.7,2841.2,0.07735584]
[1769706177325,0.87941466,2842.8,2841.2,0.07735584]
[1769706177528,1.61641466,2842.8,2841.2,0.07735584]
[1769706177859,0.87941466,2842.8,2841.2,0.07735584]
[1769706178125,1.61641466,2842.8,2841.2,0.07735584]
[1769706178329,1.61641466,2842.8,2841.1,0.002]
[1769706178330,0.87947653,2842.6,2841.1,0.002]
[1769706178622,1.61646668,2842.7,2841.1,0.002]
[1769706179042,0.87946668,2842.7,2841.1,0.002]
[1769706179407,0.87940278,2842.9,2841.6,0.07735584]
[1769706180142,0.96686184,2841.5,2840.0,0.42609609]
[1769706180318,0.96686184,2841.3,2840.0,0.42609609]
[1769706180506,0.96686184,2841.2,2840.0,0.42609609]
[1769706180834,1.64612103,2841.4,2840.0,0.42609609]
[1769706180835,0.87984796,2841.4,2840.0,0.42609609]
[1769706181225,0.87983667,2841.5,2840.0,0.42609609]
[1769706181533,1.84649309,2842.1,2840.0,0.52850918]
[1769706181735,0.96686184,2842.0,2840.0,0.42609609]
[1769706181924,0.96686184,2841.6,2840.0,0.42609609]
[1769706182131,0.96686184,2840.7,2838.5,0.17976893]
[1769706182441,0.07735584,2841.2,2837.7,0.07735584]
[1769706182442,8.56179879,2841.4,2838.8,0.07735584]
[1769706182617,0.96686184,2841.3,2839.3,0.07735584]
[1769706183006,0.96686184,2841.3,2839.5,0.07735584]
[1769706183206,0.96686184,2841.3,2839.7,0.07735584]
[1769706183453,0.96686184,2841.8,2839.9,0.07735584]
[1769706183625,0.96686184,2841.8,2840.2,0.07735584]
[1769706184416,1.84661455,2841.8,2840.2,0.07735584]
[1769706185143,0.96686184,2841.7,2840.2,0.07735584]
[1769706185443,0.96686184,2840.2,2838.3,0.24414437]
[1769706185608,0.96686184,2840.2,2839.7,0.07735584]
[1769706185812,0.96686184,2840.2,2839.1,0.07735584]
[1769706186123,0.96686184,2840.2,2839.2,0.07735584]
[1769706186455,0.88025069,2840.1,2839.2,0.07735584]
[1769706186622,0.96686184,2840.0,2839.2,0.07735584]
[1769706187215,0.96686184,2840.7,2839.8,0.07735584]
[1769706187444,0.96686184,2840.5,2839.8,0.07530584]
[1769706187653,0.96686184,2840.5,2839.6,0.07735584]
[1769706187822,0.96686184,2840.5,2839.4,0.07735584]
[1769706188026,0.96686184,2840.3,2839.0,0.002]
[1769706188214,0.96686184,2840.3,2839.2,0.07735584]
[1769706189049,0.96686184,2840.1,2839.2,0.07735584]
[1769706189249,0.96686184,2840.1,2839.0,0.07935584]
[1769706189465,0.96686184,2840.1,2839.1,0.07735584]
[1769706189626,0.96686184,2838.6,2837.5,0.002]
[1769706190459,0.96686184,2839.4,2837.5,0.002]
[1769706190917,0.96686184,2839.2,2837.5,0.002]
[1769706192628,0.96686184,2839.2,2837.6,0.07047092]
[1769706193024,1.84742258,2839.1,2837.6,0.07047092]
[1769706193234,0.96686184,2839.0,2837.6,0.07047092]
[1769706193555,0.96686184,2839.0,2837.5,0.002]
[1769706193765,0.88043669,2839.5,2838.2,0.07047092]
[1769706194126,0.88043669,2839.5,2837.9,0.07047092]
[1769706194127,0.96686184,2839.4,2838.1,0.07047092]
[1769706194352,0.96686184,2839.4,2838.0,0.07047092]
[1769706195157,0.96686184,2839.2,2838.0,0.07047092]
[1769706195852,0.96686184,2839.2,2838.4,0.07047092]
[1769706196055,0.96686184,2839.2,2838.2,0.07047092]
[1769706196261,0.88048243,2839.4,2838.6,0.07047092]
[1769706196459,0.88045447,2839.5,2838.6,0.07047092]
[1769706196664,0.88045447,2839.5,2838.8,0.07047092]
[1769706196956,0.88045447,2839.5,2838.6,0.07047092]
[1769706197127,3.52172411,2839.6,2838.6,0.07047092]
[1769706197327,3.52172411,2839.6,2838.0,0.07047092]
[1769706197328,12.0835229,2839.6,2838.3,0.07047092]
[1769706197565,12.0835229,2839.6,2838.5,0.07047092]
[1769706197738,4.33425654,2840.9,2838.7,0.07047092]
[1769706197739,3.52124354,2840.0,2838.7,0.07047092]
[1769706198140,9.52866063,2839.6,2838.2,0.07047092]
[1769706198347,3.52124354,2840.0,2838.8,0.07047092]
[1769706198665,0.96686184,2839.9,2838.8,0.07047092]
[1769706198833,0.96686184,2839.8,2838.6,0.07047092]
[1769706199333,0.88037468,2839.7,2838.6,0.07047092]
[1769706199531,0.88037468,2839.7,2838.5,0.07047092]
[1769706201031,0.96686184,2839.5,2838.2,0.002]
[1769706201232,0.96686184,2839.0,2838.2,0.002]
[1769706201864,1.84732954,2839.4,2838.2,0.002]
[1769706202061,0.96686184,2839.3,2838.2,0.002]
[1769706203064,0.96686184,2839.0,2837.6,0.07047092]
[1769706203364,0.96686184,2839.0,2837.5,0.002]
[1769706203365,1.84748461,2838.9,2837.5,0.002]
[1769706203666,1.84748461,2838.9,2837.6,0.07047092]
[1769706203970,1.84748461,2838.9,2837.8,0.07047092]
[1769706204166,1.84748461,2838.9,2837.6,0.07047092]
[1769706204468,1.84748461,2838.9,2837.8,0.07047092]
[1769706206376,0.88049871,2839.3,2838.2,0.07047092]
[1769706206670,0.88049871,2839.3,2838.4,0.07047092]
[1769706207238,1.84740433,2839.9,2838.4,0.07047092]
[1769706207462,3.52147259,2839.8,2838.4,0.07047092]
[1769706207671,3.52147259,2839.8,2838.6,0.07047092]
[1769706207977,3.52147259,2839.8,2838.4,0.07047092]
[1769706207978,0.79736361,2839.7,2838.4,0.07047092]
[1769706208173,0.79736361,2839.7,2838.4,1.2e-07]
[1769706208470,0.79736361,2839.7,2838.2,0.07047092]
[1769706208860,0.96706065,2839.6,2838.2,0.07047092]
[1769706209067,0.96706065,2839.6,2837.6,3e-08]
[1769706209068,0.96706065,2839.2,2837.6,3e-08]
[1769706209245,0.96706065,2839.1,2837.8,0.07047092]
[1769706209855,0.96706065,2838.9,2837.8,0.07047092]
[1769706210060,0.96706065,2838.9,2837.6,3e-08]
[1769706210284,0.96706065,2838.7,2837.0,0.002]
[1769706210473,0.96706065,2838.7,2837.6,0.07047092]
[1769706210657,0.96706065,2838.7,2838.0,0.002]
[1769706211593,0.88059175,2839.0,2838.1,0.07047092]
[1769706211800,0.001,2839.1,2838.3,0.07047092]
[1769706212409,0.001,2839.1,2838.5,0.07047092]
[1769706212885,0.001,2839.1,2838.1,0.07047092]
[1769706212886,0.91332837,2839.1,2838.1,0.07047092]
[1769706213184,0.91332837,2839.1,2838.2,0.07047092]
[1769706213587,0.91332837,2839.1,2838.4,0.07047092]
[1769706213770,0.001,2839.1,2838.6,0.07047092]
[1769706214862,0.91332837,2839.1,2838.0,0.002]
[1769706215094,0.91332837,2839.1,2837.8,0.002]
[1769706215095,0.91232837,2838.7,2837.8,0.002]
[1769706215300,0.91232837,2838.7,2837.9,0.07749617]
[1769706215807,0.001,2839.1,2838.3,0.07749617]
[1769706215985,0.88059175,2839.0,2838.3,0.07602766]
[1769706217074,0.88059175,2839.0,2838.1,0.07749617]
[1769706217075,0.001,2839.1,2838.4,0.07749617]
[1769706217277,0.91232837,2839.7,2839.1,0.07749617]
[1769706217478,0.88033252,2839.9,2839.1,0.07749617]
[1769706217682,0.88033252,2839.9,2839.3,0.07749617]
[1769706217880,0.88033252,2839.9,2839.3,0.0754462]
[1769706218077,0.88025069,2840.1,2839.3,0.0754462]
[1769706218603,1.79257906,2840.1,2839.3,0.0754462]
[1769706219204,0.91232837,2839.7,2838.0,0.07749617]
[1769706219401,0.91232837,2839.7,2837.8,0.002]
[1769706219603,0.91232837,2839.2,2837.8,0.002]
[1769706220007,9.47412716,2838.8,2837.8,0.002]
[1769706220303,1.79301319,2838.7,2837.8,0.002]
[1769706220905,0.91232837,2838.6,2837.8,0.002]
[1769706222311,0.88074687,2838.5,2837.8,0.002]
[1769706222879,9.47412716,2838.3,2837.5,0.002]
[1769706223386,0.91232837,2838.3,2837.5,0.002]
[1769706223580,0.91232837,2838.3,2838.0,0.002]
[1769706223781,0.91232837,2838.3,2838.0,0.00053134]
[1769706224289,0.91232837,2838.3,2837.5,0.002]
[1769706224290,0.88083996,2838.2,2837.5,0.002]
[1769706224500,0.88068482,2838.7,2837.5,0.002]
[1769706224876,0.91232837,2838.6,2837.5,0.002]
[1769706225413,0.91232837,2838.1,2837.5,0.002]
[1769706225917,0.91232837,2838.1,2837.2,0.002]
[1769706226482,1.79323041,2838.0,2837.2,0.002]
[1769706227822,0.91232837,2837.9,2837.2,0.002]
[1769706228023,0.91232837,2837.5,2837.0,0.002]
[1769706228321,0.91232837,2837.3,2835.8,0.002]
[1769706228475,0.88115043,2837.2,2835.8,0.002]
[1769706228904,0.91232837,2837.1,2835.8,0.002]
[1769706229519,0.88113918,2837.3,2835.8,0.002]
[1769706230227,0.88111104,2837.4,2835.9,0.07749617]
[1769706230585,0.88105726,2837.5,2835.8,0.07949617]
[1769706231028,1.79338563,2837.5,2835.8,0.07949617]
[1769706231384,0.91232837,2837.4,2835.8,0.07949617]
[1769706232333,0.91232837,2837.4,2835.8,0.002]
[1769706232620,0.91232837,2837.2,2835.8,0.002]
[1769706234791,0.91232837,2837.0,2835.8,0.002]
[1769706235705,1.0003024,2836.9,2835.8,0.002]
[1769706236026,1.0003024,2836.6,2835.8,0.002]
[1769706236825,0.88136788,2836.5,2835.8,0.002]
[1769706237737,1.0003024,2836.4,2835.8,0.002]
[1769706238050,1.0003024,2836.3,2835.6,0.002]
[1769706238222,0.88136788,2836.5,2835.7,0.07749617]
[1769706238547,0.88136788,2836.5,2835.7,0.07602632]
[1769706238853,3.52543309,2836.6,2835.7,0.07602632]
[1769706239947,3.52543309,2836.6,2835.6,0.002]
[1769706240445,9.31134175,2837.0,2835.6,0.002]
[1769706240446,1.88148388,2837.1,2835.9,0.07749617]
[1769706240747,1.88148388,2837.1,2836.1,0.07749617]
[1769706241315,0.88118148,2837.1,2835.9,0.07749617]
[1769706241646,0.88118148,2837.1,2835.6,0.002]
[1769706241647,1.0003024,2837.0,2835.6,0.002]
[1769706241845,1.0003024,2836.8,2835.6,0.002]
[1769706242047,1.0003024,2836.2,2834.7,0.07749617]
[1769706242234,1.0003024,2836.2,2835.1,0.07749617]
[1769706242434,1.0003024,2836.8,2835.7,0.07749617]
[1769706242616,1.0003024,2836.8,2835.7,0.07544642]
[1769706243015,3.52572595,2837.2,2835.7,0.07544642]
[1769706243248,4.52602835,2837.2,2835.8,0.07749617]
[1769706243544,1.0003024,2837.1,2835.8,0.07749617]
[1769706243845,1.0003024,2837.1,2835.5,0.07749617]
[1769706244146,1.0003024,2837.1,2835.7,0.07749617]
[1769706244344,1.0003024,2837.1,2835.6,0.07749617]
[1769706245121,1.0003024,2837.1,2835.3,0.07544634]
[1769706245122,1.88151494,2837.0,2835.5,0.07749617]
[1769706245329,1.0003024,2836.9,2835.3,0.07544634]
[1769706245751,1.0003024,2836.9,2835.6,0.07749617]
[1769706246045,0.88121254,2837.0,2836.0,0.07749617]
[1769706246247,0.88121254,2837.0,2836.2,0.07749617]
[1769706246546,0.88121254,2837.0,2836.0,0.07749617]
[1769706247113,3.52485019,2837.1,2835.6,0.07749617]
[1769706247418,1.0003024,2836.8,2835.4,0.07749617]
[1769706247644,1.0003024,2836.8,2835.6,0.07749617]
[1769706248028,3.52485019,2837.1,2835.6,0.07749617]
[1769706248229,3.52485019,2837.1,2835.9,0.08462027]
[1769706248429,3.52485019,2837.1,2836.1,0.08462027]
[1769706248758,3.52572595,2837.2,2836.1,0.08462027]
[1769706248759,3.52572595,2837.2,2836.7,0.08462027]
[1769706248961,0.88099517,2837.7,2836.7,1e-08]
[1769706249122,1.0003024,2838.2,2836.9,0.08462027]
[1769706249123,3.5235576,2838.1,2836.9,0.08462027]
[1769706249325,3.5235576,2838.1,2836.6,0.08462027]
[1769706249518,4.52386,2838.1,2836.6,0.08462027]
[1769706249747,1.0003024,2838.0,2836.4,0.08462027]
[1769706249918,1.0003024,2838.0,2836.7,0.08462027]
[1769706250319,3.5235576,2838.1,2836.6,0.0916348]
[1769706250550,3.5235576,2838.1,2836.8,0.0916348]
[1769706251553,3.5235576,2838.1,2837.2,0.3]
[1769706251961,0.880871,2838.2,2837.3,0.0916348]
[1769706252255,0.880871,2838.2,2837.5,0.09866972]
[1769706252429,0.880871,2838.2,2837.3,0.0916348]
[1769706253050,0.880871,2838.2,2837.0,0.0916348]
[1769706253351,3.52263454,2838.8,2837.5,0.09866972]
[1769706254121,3.52263454,2838.8,2837.4,0.10570266]
[1769706254930,0.49136228,2838.7,2837.4,0.10570266]
[1769706255131,1.0003024,2838.7,2837.0,0.0916348]
[1769706255332,1.0003024,2838.7,2837.2,0.10570266]
[1769706255544,0.88074687,2838.5,2837.2,0.10570266]
[1769706256059,0.88074687,2838.5,2837.0,0.0916348]
[1769706256238,0.88074687,2838.5,2837.2,0.10570266]
[1769706256555,0.88074687,2838.5,2837.0,0.0916348]
[1769706256761,0.88074687,2838.5,2837.2,0.10570266]
[1769706257161,0.88074687,2838.5,2837.0,0.0916348]
[1769706257362,0.88074687,2838.5,2836.8,1.09000448]
[1769706257567,4.52328989,2838.6,2837.0,0.10570266]
[1769706257739,4.52328989,2838.6,2837.4,0.10570266]
[1769706258144,4.52328989,2838.6,2837.3,0.10570266]
[1769706260238,4.52328989,2838.6,2837.0,0.10570266]
[1769706260442,4.52328989,2838.6,2837.2,0.10570266]
[1769706260651,0.001,2838.4,2837.0,0.10570266]
[1769706260851,0.001,2838.4,2837.2,0.10570266]
[1769706261049,0.001,2838.4,2837.0,0.10570266]
[1769706261050,0.001,2838.4,2837.8,0.10570266]
[1769706261239,0.88071584,2838.6,2838.0,0.10570266]
[1769706261439,0.88071584,2838.6,2838.1,0.10570266]
[1769706261670,3.52263875,2838.8,2838.1,0.10570266]
[1769706261671,0.88070583,2838.7,2838.1,0.10570266]
[1769706261844,0.8804677,2839.4,2838.1,0.10570266]
[1769706262169,0.8804677,2839.4,2838.0,0.10570266]
[1769706263262,0.8804677,2839.4,2838.2,0.10570266]
[1769706263463,4.01248904,2840.1,2839.3,0.10570266]
[1769706263649,4.01248904,2840.1,2838.9,0.10570266]
[1769706263650,2.19081124,2840.0,2838.5,0.10570266]
[1769706263855,0.88034368,2839.8,2838.9,0.10570266]
[1769706264052,1.31052955,2839.7,2838.5,0.10570266]
[1769706264272,1.31052955,2839.7,2838.2,0.10570266]
[1769706265845,1.31052955,2839.5,2838.2,1.7e-07]
[1769706267875,1.31052955,2839.5,2838.0,0.10570266]
[1769706268085,1.31052955,2839.3,2837.9,0.10570266]
[1769706268287,1.31052955,2839.3,2838.1,0.10570266]
[1769706268444,1.31052955,2839.3,2837.7,0.10570266]
[1769706268445,0.8804677,2839.4,2837.7,0.10570266]
[1769706268650,1.31052955,2839.3,2838.1,0.10570266]
[1769706269498,1.31052955,2839.3,2837.9,0.10570266]
[1769706270175,2.19105927,2839.2,2837.9,0.10570266]
[1769706270991,2.19105927,2839.2,2838.1,0.10570266]
[1769706271584,1.31052955,2839.1,2837.7,0.10570266]
[1769706271786,1.31052955,2839.1,2837.5,0.10570266]
[1769706272158,1.31052955,2839.1,2838.5,0.10570266]
[1769706272159,0.88059175,2839.0,2838.5,0.10570266]
[1769706272370,0.88059175,2839.0,2838.2,0.10570266]
[1769706272567,0.88059175,2839.0,2838.0,0.10570266]
[1769706272877,0.88059175,2839.0,2838.2,0.10570266]
[1769706273047,1.31052955,2838.9,2837.8,0.10570266]
[1769706273244,1.31052955,2838.9,2838.0,0.10570266]
[1769706274177,2.19118334,2838.8,2837.9,0.002]
[1769706274392,2.19118334,2838.8,2838.0,0.10570266]
[1769706274753,1.31052955,2838.7,2838.0,0.10570266]
[1769706275155,0.88065379,2838.8,2838.0,0.10570266]
[1769706275985,0.88065379,2838.8,2837.9,0.002]
[1769706275986,1.31052955,2838.7,2837.9,0.002]
[1769706276185,1.31052955,2838.3,2837.2,0.10570266]
[1769706276491,1.31052955,2838.3,2836.8,0.0916348]
[1769706276667,1.31052955,2838.2,2836.8,0.0916348]
[1769706276986,1.31052955,2838.2,2836.1,0.08462027]
[1769706277488,1.31052955,2838.0,2836.1,0.08462027]
[1769706278165,1.31052955,2837.8,2836.1,0.08462027]
[1769706280258,1.31052955,2837.6,2836.6,0.10570266]
[1769706281723,1.31052955,2837.6,2836.1,0.08462027]
[1769706282007,1.31052955,2837.6,2835.9,0.08462027]
[1769706282215,1.30952955,2836.8,2835.6,0.10770266]
[1769706283467,1.30952955,2836.8,2835.6,0.002]
[1769706283681,1.30952955,2836.3,2835.6,0.002]
[1769706284093,1.30952955,2836.3,2835.0,0.10570266]
[1769706284278,1.30952955,2836.1,2835.0,0.10570266]
[1769706284815,1.30952955,2836.0,2833.8,1.11642421]
[1769706285378,1.30952955,2836.0,2834.8,0.10570266]
[1769706285578,1.30952955,2836.0,2835.0,0.10570266]
[1769706285906,1.30952955,2836.0,2835.2,0.10570266]
[1769706286111,1.30952955,2836.0,2835.0,0.10570266]
[1769706286407,0.88155435,2835.9,2835.0,0.10570266]
[1769706286572,2.1910839,2835.9,2835.0,0.10570266]
[1769706286771,1.30952955,2835.8,2835.0,0.10570266]
[1769706287068,1.30952955,2835.8,2835.1,0.10570266]
[1769706287966,1.30952955,2836.2,2835.2,0.10570266]
[1769706288170,1.30952955,2836.2,2835.3,0.10570266]
[1769706288366,0.88149218,2836.1,2835.3,0.10570266]
[1769706288569,2.19102173,2836.1,2835.2,0.10570266]
[1769706288799,1.30952955,2836.0,2834.7,0.10570266]
[1769706289799,1.30952955,2836.0,2834.9,0.10570266]
[1769706290185,1.30952955,2835.9,2834.8,0.10570266]
[1769706290389,1.30952955,2835.7,2834.8,0.10570266]
[1769706290700,1.30952955,2835.7,2834.6,0.10770266]
[1769706291970,1.30952955,2835.7,2834.8,0.10570266]
[1769706292183,1.30952955,2835.7,2834.6,0.002]
[1769706295312,1.30952955,2835.5,2834.6,0.002]
[1769706297286,0.88170981,2835.4,2834.6,0.002]
[1769706297488,1.30952955,2835.3,2834.6,0.002]
[1769706298306,1.30952955,2835.3,2834.8,0.002]
[1769706299189,1.30952955,2835.3,2834.5,0.002]
[1769706299414,0.881772,2835.2,2834.5,0.002]
[1769706299631,1.30952955,2835.1,2834.5,0.002]
[1769706301189,3.52708803,2835.3,2834.7,0.10570266]
[1769706301390,0.001,2835.5,2834.9,0.10570266]
[1769706301617,1.13969923,2836.2,2835.3,0.10570266]
[1769706301802,0.10570266,2838.4,2835.8,0.10570266]
[1769706301803,1.22461439,2836.9,2835.8,0.10570266]
[1769706302001,1.22461439,2836.8,2835.5,0.10570266]
[1769706302324,1.22461439,2836.8,2835.6,0.10570266]
[1769706302625,1.22461439,2837.2,2835.9,0.10570266]
[1769706303001,1.22461439,2837.2,2836.1,0.10570266]
[1769706303510,1.22461439,2837.2,2835.7,0.10570266]
[1769706303511,0.88118148,2837.1,2835.7,0.10570266]
[1769706303719,0.88118148,2837.1,2835.9,0.10570266]
[1769706304123,2.10579587,2837.1,2835.9,0.10570266]
[1769706304314,1.22461439,2837.0,2835.9,0.10570266]
[1769706304737,1.22461439,2837.0,2835.4,0.10570266]
[1769706304901,1.22461439,2836.8,2835.2,0.10570266]
[1769706305106,1.22461439,2836.8,2834.5,0.10770266]
[1769706305418,1.22461439,2836.6,2834.5,0.10770266]
[1769706305940,1.22461439,2836.6,2835.4,0.10570266]
[1769706306933,1.22461439,2836.6,2835.2,0.10570266]
[1769706307511,0.88136788,2836.5,2835.2,0.10570266]
[1769706307814,0.88136788,2836.5,2835.4,0.10570266]
[1769706308019,2.10598227,2836.5,2835.2,0.10570266]
[1769706308216,0.88136788,2836.5,2835.2,0.10570266]
[1769706308416,1.22461439,2836.4,2835.2,0.10570266]
[1769706308724,1.22461439,2836.3,2835.2,0.10570266]
[1769706309118,1.22461439,2836.3,2835.4,0.10570266]
[1769706309629,0.8814611,2836.2,2835.4,0.10570266]
[1769706311247,0.8814611,2836.2,2835.5,0.10570266]
[1769706311447,1.22461439,2836.7,2835.7,0.10570266]
[1769706311744,3.52500215,2836.9,2835.9,0.10570266]
[1769706312047,0.88127467,2836.8,2835.9,0.10570266]
[1769706312351,1.13920023,2836.7,2835.7,0.10570266]
[1769706312915,1.13920023,2836.7,2835.9,0.10570266]
[1769706313518,0.88133681,2836.6,2835.9,0.10570266]
[1769706313716,1.13920023,2836.5,2835.5,0.10570266]
[1769706315113,1.13920023,2836.5,2835.2,0.10570266]
[1769706315318,1.13920023,2836.5,2835.0,0.10570266]
[1769706315319,1.13920023,2836.4,2835.3,0.10570266]
[1769706315644,2.02063026,2836.3,2835.3,0.10570266]
[1769706316125,1.13920023,2836.2,2835.3,0.10570266]
[1769706316951,1.13920023,2836.2,2835.5,0.10570266]
[1769706317356,0.88143003,2836.3,2835.8,0.10570266]
[1769706317555,3.52572012,2836.4,2835.6,0.10570266]
[1769706317761,0.88135711,2836.6,2835.8,0.10570266]
[1769706318048,0.88127467,2836.8,2836.4,0.10570266]
[1769706318420,2.0204749,2836.8,2835.8,0.10570266]
[1769706318619,2.0204749,2836.8,2835.5,0.10570266]
[1769706318815,2.0204749,2836.8,2835.3,0.10570266]
[1769706319021,2.0204749,2836.8,2835.5,0.10570266]
[1769706319241,2.0204749,2836.8,2835.6,0.10570266]
[1769706320239,1.13920023,2836.7,2835.7,0.10570266]
[1769706320440,1.13920023,2836.5,2835.5,0.10570266]
[1769706321124,1.13920023,2836.5,2834.4,0.10570266]
[1769706321437,1.13920023,2836.4,2834.4,0.10570266]
[1769706321650,1.13920023,2836.4,2835.3,0.10570266]
[1769706322021,1.13920023,2836.2,2835.5,0.10570266]
[1769706322217,1.13920023,2836.2,2834.4,0.10570266]
[1769706322218,1.13920023,2836.2,2835.4,0.10570266]
[1769706322649,1.13920023,2836.2,2835.0,0.27]
[1769706323159,1.13920023,2836.2,2834.7,0.10570266]
[1769706323160,1.13920023,2835.8,2834.7,0.10570266]
[1769706323325,1.13920023,2835.8,2834.4,0.10570266]
[1769706323658,1.40920023,2835.7,2834.4,0.10570266]
[1769706324241,1.13920023,2835.4,2834.4,0.10570266]
[1769706324755,1.13920023,2835.2,2834.4,0.10570266]
[1769706325558,0.27,2835.1,2834.4,0.10570266]
[1769706326364,1.13920023,2834.9,2834.2,0.002]
[1769706326659,1.15183421,2835.0,2834.2,0.10770266]
[1769706329066,1.13920023,2834.9,2834.2,0.002]
[1769706329263,1.13920023,2834.9,2834.1,0.002]
[1769706329453,0.27,2834.8,2834.1,0.002]
[1769706329996,0.27,2834.8,2834.2,0.10570266]
[1769706330155,0.27,2834.7,2834.1,0.002]